[Event "Titled Tuesday Blitz April 25 Early 2023"]
[White "Bacrot, Etienne"]
[Black "Isajevsky, Anton"]
[WhiteFideId "605506"]
[BlackFideId "4142500"]
[WhiteElo "2663"]
[BlackElo "2510"]
[Result "1-0"]
[Round "06"]
[TimeControl "180+2"]
[Date "2023.04.25"]
[WhiteClock "0:00:08"]
[BlackClock "0:00:02"]

1. d4 {[%clk 0:03:00]}  d5 {[%clk 0:02:59]} 2. Nf3 {[%clk 0:03:01]}  Nf6 {[%clk 0:02:59]} 3. c4 {[%clk 0:03:01]}  e6 {[%clk 0:02:59]} 4. e3 {[%clk 0:03:01]}  Be7 {[%clk 0:02:58]} 5. Nc3 {[%clk 0:03:00]}  O-O {[%clk 0:02:58]} 6. b3 {[%clk 0:03:01]}  b6 {[%clk 0:02:57]} 7. Bb2 {[%clk 0:03:01]}  Bb7 {[%clk 0:02:56]} 8. Bd3 {[%clk 0:03:01]}  Nbd7 {[%clk 0:02:56]} 9. O-O {[%clk 0:03:01]}  c5 {[%clk 0:02:54]} 10. Qe2 {[%clk 0:03:01]}  Rc8 {[%clk 0:02:47]} 11. Rad1 {[%clk 0:02:52]}  cxd4 {[%clk 0:02:46]} 12. exd4 {[%clk 0:02:51]}  Re8 {[%clk 0:02:35]} 13. Rfe1 {[%clk 0:02:51]}  Qc7 {[%clk 0:02:33]} 14. Ne5 {[%clk 0:02:23]}  Bb4 {[%clk 0:01:51]} 15. f4 {[%clk 0:02:15]}  dxc4 {[%clk 0:01:21]} 16. bxc4 {[%clk 0:02:14]}  a6 {[%clk 0:01:20]} 17. Rc1 {[%clk 0:02:01]}  Qd6 {[%clk 0:01:13]} 18. Kh1 {[%clk 0:01:41]}  Nf8 {[%clk 0:00:56]} 19. Red1 {[%clk 0:01:24]}  Red8 {[%clk 0:00:53]} 20. Na4 {[%clk 0:01:13]}  b5 {[%clk 0:00:48]} 21. c5 {[%clk 0:01:09]}  Qe7 {[%clk 0:00:34]} 22. Nb6 {[%clk 0:01:07]}  Rc7 {[%clk 0:00:31]} 23. a4 {[%clk 0:00:35]}  bxa4 {[%clk 0:00:21]} 24. Bxa6 {[%clk 0:00:34]}  Ng6 {[%clk 0:00:20]} 25. Bxb7 {[%clk 0:00:34]}  Rxb7 {[%clk 0:00:20]} 26. Nc6 {[%clk 0:00:34]}  Qf8 {[%clk 0:00:16]} 27. Nxd8 {[%clk 0:00:31]}  Qxd8 {[%clk 0:00:16]} 28. Qf3 {[%clk 0:00:28]}  Rb8 {[%clk 0:00:13]} 29. Rb1 {[%clk 0:00:26]}  Ba5 {[%clk 0:00:12]} 30. Ba3 {[%clk 0:00:23]}  h5 {[%clk 0:00:09]} 31. Nc4 {[%clk 0:00:21]}  Rxb1 {[%clk 0:00:09]} 32. Rxb1 {[%clk 0:00:21]}  Nd5 {[%clk 0:00:07]} 33. f5 {[%clk 0:00:15]}  Nh4 {[%clk 0:00:02]} 34. Qg3 {[%clk 0:00:13]}  Nxf5 {[%clk 0:00:02]} 35. Qb8 {[%clk 0:00:14]}  Kh7 {[%clk 0:00:01]} 36. Qxd8 {[%clk 0:00:13]}  Bxd8 {[%clk 0:00:02]} 37. Bb2 {[%clk 0:00:08]}  Bc7 {[%clk 0:00:02]} 38. Ra1 {[%clk 0:00:08]} 1-0


[Site "https://www.chess.com"]

[Event "Titled Tuesday Blitz April 25 Early 2023"]
[White "Beerdsen, Thomas"]
[Black "Lund, Gunnar"]
[WhiteFideId "1030108"]
[BlackFideId "1520814"]
[WhiteElo "2547"]
[BlackElo "2233"]
[Result "1-0"]
[Round "06"]
[TimeControl "180+2"]
[Date "2023.04.25"]
[WhiteClock "0:01:09"]
[BlackClock "0:00:07"]

1. a4 {[%clk 0:03:00]}  e5 {[%clk 0:02:58]} 2. Ra3 {[%clk 0:03:01]}  d5 {[%clk 0:02:57]} 3. Rg3 {[%clk 0:03:02]}  Nf6 {[%clk 0:02:56]} 4. b3 {[%clk 0:03:02]}  Nc6 {[%clk 0:02:54]} 5. Bb2 {[%clk 0:03:03]}  Bf5 {[%clk 0:02:53]} 6. e3 {[%clk 0:03:03]}  a6 {[%clk 0:02:52]} 7. Nf3 {[%clk 0:03:03]}  Ne4 {[%clk 0:02:49]} 8. Nxe5 {[%clk 0:03:03]}  Nxe5 {[%clk 0:02:41]} 9. Bxe5 {[%clk 0:03:03]}  Nxg3 {[%clk 0:02:41]} 10. hxg3 {[%clk 0:03:04]}  f6 {[%clk 0:02:38]} 11. Bb2 {[%clk 0:03:02]}  Qd7 {[%clk 0:02:39]} 12. Nc3 {[%clk 0:02:55]}  O-O-O {[%clk 0:02:38]} 13. Qf3 {[%clk 0:02:42]}  Kb8 {[%clk 0:02:29]} 14. Rh4 {[%clk 0:02:29]}  Bxc2 {[%clk 0:02:11]} 15. b4 {[%clk 0:02:27]}  Be4 {[%clk 0:02:04]} 16. Qd1 {[%clk 0:02:20]}  Bxb4 {[%clk 0:02:01]} 17. Qb3 {[%clk 0:02:20]}  Qd6 {[%clk 0:01:49]} 18. Be2 {[%clk 0:02:02]}  g5 {[%clk 0:01:47]} 19. Rh6 {[%clk 0:02:02]}  Bg6 {[%clk 0:01:45]} 20. Bf3 {[%clk 0:01:59]}  c6 {[%clk 0:01:41]} 21. Ne2 {[%clk 0:01:57]}  Rhe8 {[%clk 0:01:37]} 22. Kf1 {[%clk 0:01:44]}  Ka8 {[%clk 0:01:32]} 23. g4 {[%clk 0:01:40]}  Bxd2 {[%clk 0:01:24]} 24. Nd4 {[%clk 0:01:35]}  Bb4 {[%clk 0:01:22]} 25. Nf5 {[%clk 0:01:34]}  Qf8 {[%clk 0:01:20]} 26. Rh3 {[%clk 0:01:30]}  Bd6 {[%clk 0:01:18]} 27. Be2 {[%clk 0:01:24]}  h5 {[%clk 0:01:18]} 28. Nd4 {[%clk 0:01:23]}  hxg4 {[%clk 0:01:05]} 29. Bxg4 {[%clk 0:01:24]}  c5 {[%clk 0:00:55]} 30. Ne6 {[%clk 0:01:24]}  Rxe6 {[%clk 0:00:46]} 31. Bxe6 {[%clk 0:01:25]}  c4 {[%clk 0:00:45]} 32. Qb6 {[%clk 0:01:25]}  Bc5 {[%clk 0:00:42]} 33. Qa5 {[%clk 0:01:23]}  Bb4 {[%clk 0:00:41]} 34. Qb6 {[%clk 0:01:22]}  Bc5 {[%clk 0:00:41]} 35. Qa5 {[%clk 0:01:22]}  Qd6 {[%clk 0:00:37]} 36. Bxf6 {[%clk 0:01:18]}  Re8 {[%clk 0:00:23]} 37. Rh8 {[%clk 0:01:12]}  Rxh8 {[%clk 0:00:16]} 38. Bxh8 {[%clk 0:01:13]}  Bxe3 {[%clk 0:00:13]} 39. Bxd5 {[%clk 0:01:10]}  Bd3+ {[%clk 0:00:12]} 40. Kg1 {[%clk 0:01:09]}  Bb6 {[%clk 0:00:12]} 41. Qxa6+ {[%clk 0:01:08]}  Kb8 {[%clk 0:00:07]} 42. Qxb7# {[%clk 0:01:09]} 1-0


[Site "https://www.chess.com"]

[Event "Titled Tuesday Blitz April 25 Early 2023"]
[White "Ferenc83"]
[Black "Molina, Roberto Junio Brito"]
[BlackFideId "2109450"]
[WhiteElo "2588"]
[BlackElo "2376"]
[Result "0-1"]
[Round "06"]
[TimeControl "180+2"]
[Date "2023.04.25"]
[WhiteClock "0:00:01"]
[BlackClock "0:00:08"]

1. e4 {[%clk 0:03:00]}  c6 {[%clk 0:03:00]} 2. Nf3 {[%clk 0:02:59]}  d5 {[%clk 0:03:01]} 3. d3 {[%clk 0:02:58]}  Bg4 {[%clk 0:03:00]} 4. Nbd2 {[%clk 0:02:55]}  e6 {[%clk 0:02:59]} 5. h3 {[%clk 0:02:54]}  Bh5 {[%clk 0:02:59]} 6. Qe2 {[%clk 0:02:46]}  Nf6 {[%clk 0:02:58]} 7. g4 {[%clk 0:02:43]}  Bg6 {[%clk 0:02:58]} 8. Bg2 {[%clk 0:02:42]}  Nbd7 {[%clk 0:02:52]} 9. e5 {[%clk 0:02:40]}  Ng8 {[%clk 0:02:52]} 10. Nf1 {[%clk 0:02:37]}  h5 {[%clk 0:02:48]} 11. Ng3 {[%clk 0:02:20]}  hxg4 {[%clk 0:02:46]} 12. hxg4 {[%clk 0:02:19]}  Rxh1+ {[%clk 0:02:46]} 13. Bxh1 {[%clk 0:02:19]}  Ne7 {[%clk 0:02:39]} 14. Bd2 {[%clk 0:02:10]}  c5 {[%clk 0:02:38]} 15. O-O-O {[%clk 0:02:09]}  Nc6 {[%clk 0:02:39]} 16. Nh5 {[%clk 0:02:05]}  Bxh5 {[%clk 0:02:29]} 17. gxh5 {[%clk 0:02:03]}  Qc7 {[%clk 0:02:29]} 18. Bf4 {[%clk 0:02:01]}  O-O-O {[%clk 0:02:29]} 19. Kb1 {[%clk 0:01:59]}  Be7 {[%clk 0:02:22]} 20. Bg3 {[%clk 0:01:57]}  Rh8 {[%clk 0:02:21]} 21. Nh2 {[%clk 0:01:53]}  Ndxe5 {[%clk 0:02:07]} 22. Re1 {[%clk 0:01:40]}  Bd6 {[%clk 0:02:07]} 23. Qd1 {[%clk 0:01:29]}  Nd7 {[%clk 0:01:58]} 24. Rg1 {[%clk 0:01:26]}  Bxg3 {[%clk 0:01:57]} 25. Rxg3 {[%clk 0:01:25]}  Qe5 {[%clk 0:01:55]} 26. Bf3 {[%clk 0:01:23]}  Nd4 {[%clk 0:01:40]} 27. c3 {[%clk 0:01:22]}  Nxf3 {[%clk 0:01:39]} 28. Nxf3 {[%clk 0:01:23]}  Qf6 {[%clk 0:01:36]} 29. Ng5 {[%clk 0:01:11]}  Ne5 {[%clk 0:01:14]} 30. a3 {[%clk 0:01:06]}  Qf5 {[%clk 0:01:07]} 31. Ka2 {[%clk 0:00:52]}  a6 {[%clk 0:01:03]} 32. d4 {[%clk 0:00:48]}  cxd4 {[%clk 0:01:02]} 33. Qxd4 {[%clk 0:00:46]}  f6 {[%clk 0:01:00]} 34. Qc5+ {[%clk 0:00:21]}  Kb8 {[%clk 0:00:34]} 35. Qd6+ {[%clk 0:00:20]}  Ka8 {[%clk 0:00:32]} 36. Nxe6 {[%clk 0:00:21]}  Nc4 {[%clk 0:00:29]} 37. Nc7+ {[%clk 0:00:08]}  Kb8 {[%clk 0:00:26]} 38. Qxd5 {[%clk 0:00:08]}  Qxd5 {[%clk 0:00:25]} 39. Nxd5 {[%clk 0:00:09]}  Rxh5 {[%clk 0:00:25]} 40. Nf4 {[%clk 0:00:09]}  Rf5 {[%clk 0:00:25]} 41. Nd3 {[%clk 0:00:08]}  g5 {[%clk 0:00:25]} 42. Kb3 {[%clk 0:00:08]}  Nd2+ {[%clk 0:00:18]} 43. Kc2 {[%clk 0:00:07]}  Ne4 {[%clk 0:00:19]} 44. Re3 {[%clk 0:00:07]}  Nxf2 {[%clk 0:00:18]} 45. Nb4 {[%clk 0:00:07]}  g4 {[%clk 0:00:16]} 46. c4 {[%clk 0:00:06]}  Kc7 {[%clk 0:00:15]} 47. Nd5+ {[%clk 0:00:06]}  Kd6 {[%clk 0:00:15]} 48. b4 {[%clk 0:00:06]}  Re5 {[%clk 0:00:10]} 49. Rg3 {[%clk 0:00:04]}  f5 {[%clk 0:00:09]} 50. Kb3 {[%clk 0:00:01]}  Ne4 {[%clk 0:00:08]} 0-1


[Site "https://www.chess.com"]

[Event "Titled Tuesday Blitz April 25 Early 2023"]
[White "Vakhlamov, Igor L."]
[Black "Yelisieiev, Yevhenii"]
[WhiteFideId "24126748"]
[BlackFideId "14139642"]
[WhiteElo "2400"]
[BlackElo "2425"]
[Result "1-0"]
[Round "06"]
[TimeControl "180+2"]
[Date "2023.04.25"]
[WhiteClock "0:02:26"]
[BlackClock "0:02:18"]

1. e4 {[%clk 0:02:59]}  d6 {[%clk 0:03:00]} 2. d4 {[%clk 0:02:59]}  Nf6 {[%clk 0:03:01]} 3. Nc3 {[%clk 0:02:58]}  e5 {[%clk 0:03:02]} 4. dxe5 {[%clk 0:02:58]}  dxe5 {[%clk 0:03:03]} 5. Qxd8+ {[%clk 0:02:58]}  Kxd8 {[%clk 0:03:04]} 6. Bg5 {[%clk 0:02:58]}  c6 {[%clk 0:03:04]} 7. Nf3 {[%clk 0:02:57]}  Nd7 {[%clk 0:03:02]} 8. O-O-O {[%clk 0:02:58]}  Ke8 {[%clk 0:03:01]} 9. Bh4 {[%clk 0:02:55]}  Bc5 {[%clk 0:02:57]} 10. Bc4 {[%clk 0:02:45]}  b5 {[%clk 0:02:56]} 11. Bb3 {[%clk 0:02:45]}  a5 {[%clk 0:02:56]} 12. a4 {[%clk 0:02:35]}  b4 {[%clk 0:02:54]} 13. Nb1 {[%clk 0:02:35]}  Nxe4 {[%clk 0:02:25]} 14. Nxe5 {[%clk 0:02:29]}  Nxe5 {[%clk 0:02:18]} 15. Rd8# {[%clk 0:02:26]} 1-0


[Site "https://www.chess.com"]

[Event "Titled Tuesday Blitz April 25 Early 2023"]
[White "Ashraf, Artin"]
[Black "Martic, Ivan"]
[WhiteFideId "22514805"]
[BlackFideId "929301"]
[WhiteElo "2188"]
[BlackElo "2360"]
[Result "1-0"]
[Round "06"]
[TimeControl "180+2"]
[Date "2023.04.25"]
[WhiteClock "0:00:31"]
[BlackClock "0:01:18"]

1. c4 {[%clk 0:02:56]}  c6 {[%clk 0:02:59]} 2. Nf3 {[%clk 0:02:54]}  d5 {[%clk 0:02:59]} 3. e3 {[%clk 0:02:54]}  Nf6 {[%clk 0:02:57]} 4. Nc3 {[%clk 0:02:53]}  e6 {[%clk 0:02:56]} 5. d4 {[%clk 0:02:38]}  Nbd7 {[%clk 0:02:55]} 6. Bd3 {[%clk 0:02:37]}  Bd6 {[%clk 0:02:55]} 7. e4 {[%clk 0:02:36]}  dxc4 {[%clk 0:02:47]} 8. Bxc4 {[%clk 0:02:34]}  Bb4 {[%clk 0:02:31]} 9. O-O {[%clk 0:02:29]}  O-O {[%clk 0:02:29]} 10. Qe2 {[%clk 0:02:17]}  b6 {[%clk 0:02:26]} 11. a3 {[%clk 0:02:14]}  Be7 {[%clk 0:02:25]} 12. Bf4 {[%clk 0:02:03]}  Bb7 {[%clk 0:02:24]} 13. Rad1 {[%clk 0:02:01]}  Re8 {[%clk 0:02:20]} 14. Ne5 {[%clk 0:01:48]}  Nxe5 {[%clk 0:02:09]} 15. dxe5 {[%clk 0:01:47]}  Nd7 {[%clk 0:02:09]} 16. Qg4 {[%clk 0:01:39]}  Qc7 {[%clk 0:02:02]} 17. Bxe6 {[%clk 0:00:58]}  Nxe5 {[%clk 0:02:01]} 18. Qf5 {[%clk 0:00:49]}  Bd6 {[%clk 0:01:54]} 19. Rxd6 {[%clk 0:00:38]}  Qxd6 {[%clk 0:01:52]} 20. Bxf7+ {[%clk 0:00:38]}  Kh8 {[%clk 0:01:49]} 21. Bxe8 {[%clk 0:00:38]}  Rxe8 {[%clk 0:01:49]} 22. Rd1 {[%clk 0:00:39]}  Qc5 {[%clk 0:01:24]} 23. Bxe5 {[%clk 0:00:35]}  Rf8 {[%clk 0:01:18]} 24. Bxg7+ {[%clk 0:00:31]}  Kxg7 {[%clk 0:01:18]} 25. Rd7+ {[%clk 0:00:31]} 1-0


[Site "https://www.chess.com"]

[Event "Titled Tuesday Blitz April 25 Early 2023"]
[White "Weishaeutel, Moritz"]
[Black "Omranalhosani21"]
[WhiteFideId "12967300"]
[WhiteElo "2301"]
[BlackElo "2753"]
[Result "1-0"]
[Round "06"]
[TimeControl "180+2"]
[Date "2023.04.25"]
[WhiteClock "0:00:22"]
[BlackClock "0:00:02"]

1. e4 {[%clk 0:03:00]}  c5 {[%clk 0:02:53]} 2. b4 {[%clk 0:03:00]}  cxb4 {[%clk 0:02:52]} 3. a3 {[%clk 0:03:01]}  bxa3 {[%clk 0:02:50]} 4. d4 {[%clk 0:03:00]}  d5 {[%clk 0:02:50]} 5. exd5 {[%clk 0:02:56]}  Qxd5 {[%clk 0:02:48]} 6. Nxa3 {[%clk 0:02:55]}  Nc6 {[%clk 0:02:13]} 7. Nb5 {[%clk 0:02:54]}  Qd8 {[%clk 0:02:13]} 8. Bf4 {[%clk 0:02:54]}  e5 {[%clk 0:02:13]} 9. dxe5 {[%clk 0:02:38]}  Bf5 {[%clk 0:01:31]} 10. Nd6+ {[%clk 0:02:16]}  Bxd6 {[%clk 0:01:30]} 11. exd6 {[%clk 0:02:17]}  Nf6 {[%clk 0:01:28]} 12. Qe2+ {[%clk 0:01:59]}  Be6 {[%clk 0:01:25]} 13. Qd2 {[%clk 0:01:51]}  O-O {[%clk 0:01:11]} 14. Bd3 {[%clk 0:01:51]}  a5 {[%clk 0:01:00]} 15. Ne2 {[%clk 0:01:45]}  a4 {[%clk 0:00:59]} 16. O-O {[%clk 0:01:43]}  Qa5 {[%clk 0:00:54]} 17. c3 {[%clk 0:01:38]}  a3 {[%clk 0:00:49]} 18. Bg5 {[%clk 0:01:29]}  Nd7 {[%clk 0:00:44]} 19. Rfb1 {[%clk 0:01:19]}  h6 {[%clk 0:00:28]} 20. Bxh6 {[%clk 0:01:11]}  Qe5 {[%clk 0:00:09]} 21. Bf4 {[%clk 0:01:03]}  Qh5 {[%clk 0:00:05]} 22. Rxb7 {[%clk 0:00:57]}  Nc5 {[%clk 0:00:05]} 23. Rc7 {[%clk 0:00:52]}  Qd5 {[%clk 0:00:04]} 24. Bc2 {[%clk 0:00:46]}  Qxd2 {[%clk 0:00:04]} 25. Bxd2 {[%clk 0:00:47]}  Ra6 {[%clk 0:00:03]} 26. Nd4 {[%clk 0:00:39]}  Nxd4 {[%clk 0:00:02]} 27. cxd4 {[%clk 0:00:40]}  Nd7 {[%clk 0:00:03]} 28. d5 {[%clk 0:00:26]}  Rxd6 {[%clk 0:00:02]} 29. dxe6 {[%clk 0:00:25]}  fxe6 {[%clk 0:00:02]} 30. Bb4 {[%clk 0:00:24]}  Rd4 {[%clk 0:00:01]} 31. Bxf8 {[%clk 0:00:23]}  Nxf8 {[%clk 0:00:02]} 32. Rxa3 {[%clk 0:00:22]}  Rd2 {[%clk 0:00:02]} 33. g3 {[%clk 0:00:22]} 1-0


[Site "https://www.chess.com"]

[Event "Titled Tuesday Blitz April 25 Early 2023"]
[White "Leenhouts, Koen"]
[Black "Bryakin, Mikhail"]
[WhiteFideId "1008439"]
[BlackFideId "4165314"]
[WhiteElo "2409"]
[BlackElo "2447"]
[Result "0-1"]
[Round "06"]
[TimeControl "180+2"]
[Date "2023.04.25"]
[WhiteClock "0:00:02"]
[BlackClock "0:00:09"]

1. d4 {[%clk 0:03:00]}  e6 {[%clk 0:02:33]} 2. c4 {[%clk 0:02:59]}  Bb4+ {[%clk 0:02:32]} 3. Bd2 {[%clk 0:02:58]}  Qe7 {[%clk 0:02:31]} 4. g3 {[%clk 0:02:53]}  Bxd2+ {[%clk 0:02:27]} 5. Qxd2 {[%clk 0:02:52]}  d6 {[%clk 0:02:28]} 6. Bg2 {[%clk 0:02:53]}  e5 {[%clk 0:02:28]} 7. Nc3 {[%clk 0:02:49]}  Nf6 {[%clk 0:02:27]} 8. e3 {[%clk 0:02:49]}  O-O {[%clk 0:02:26]} 9. Nge2 {[%clk 0:02:48]}  c6 {[%clk 0:02:25]} 10. O-O {[%clk 0:02:48]}  Bg4 {[%clk 0:02:02]} 11. h3 {[%clk 0:02:43]}  Bxe2 {[%clk 0:01:58]} 12. Nxe2 {[%clk 0:02:44]}  Nbd7 {[%clk 0:01:58]} 13. Rfd1 {[%clk 0:02:39]}  e4 {[%clk 0:01:59]} 14. b4 {[%clk 0:02:27]}  d5 {[%clk 0:01:48]} 15. c5 {[%clk 0:02:18]}  a6 {[%clk 0:01:39]} 16. a4 {[%clk 0:02:18]}  g5 {[%clk 0:01:39]} 17. b5 {[%clk 0:02:14]}  axb5 {[%clk 0:01:34]} 18. axb5 {[%clk 0:02:15]}  h6 {[%clk 0:01:33]} 19. Nc3 {[%clk 0:02:09]}  Kg7 {[%clk 0:01:30]} 20. b6 {[%clk 0:02:09]}  Rfb8 {[%clk 0:01:29]} 21. Ra2 {[%clk 0:02:00]}  h5 {[%clk 0:01:29]} 22. Rda1 {[%clk 0:01:58]}  Rxa2 {[%clk 0:01:29]} 23. Rxa2 {[%clk 0:01:59]}  h4 {[%clk 0:01:30]} 24. g4 {[%clk 0:01:56]}  Ng8 {[%clk 0:01:26]} 25. Ra7 {[%clk 0:01:53]}  f5 {[%clk 0:01:19]} 26. gxf5 {[%clk 0:01:45]}  Nh6 {[%clk 0:01:19]} 27. Qe2 {[%clk 0:01:45]}  Nxf5 {[%clk 0:01:16]} 28. Qg4 {[%clk 0:01:30]}  Kf6 {[%clk 0:01:09]} 29. Qh5 {[%clk 0:01:21]}  Qf7 {[%clk 0:00:56]} 30. Qxf7+ {[%clk 0:01:14]}  Kxf7 {[%clk 0:00:56]} 31. Bf1 {[%clk 0:01:14]}  Ke6 {[%clk 0:00:55]} 32. Be2 {[%clk 0:01:13]}  Nf6 {[%clk 0:00:41]} 33. Na2 {[%clk 0:01:12]}  Ne7 {[%clk 0:00:36]} 34. Nb4 {[%clk 0:01:09]}  Nc8 {[%clk 0:00:26]} 35. Ra1 {[%clk 0:01:08]}  Ne7 {[%clk 0:00:25]} 36. Kg2 {[%clk 0:01:07]}  Nc8 {[%clk 0:00:26]} 37. f3 {[%clk 0:01:05]}  exf3+ {[%clk 0:00:26]} 38. Bxf3 {[%clk 0:01:06]}  Ne7 {[%clk 0:00:27]} 39. Ra7 {[%clk 0:01:04]}  Nc8 {[%clk 0:00:27]} 40. Ra2 {[%clk 0:01:03]}  Ne7 {[%clk 0:00:28]} 41. Re2 {[%clk 0:01:00]}  Ra8 {[%clk 0:00:27]} 42. e4 {[%clk 0:00:56]}  dxe4 {[%clk 0:00:28]} 43. Bxe4 {[%clk 0:00:55]}  Nxe4 {[%clk 0:00:29]} 44. Rxe4+ {[%clk 0:00:55]}  Kf6 {[%clk 0:00:30]} 45. Re2 {[%clk 0:00:46]}  Ra4 {[%clk 0:00:30]} 46. Rf2+ {[%clk 0:00:45]}  Ke6 {[%clk 0:00:30]} 47. Re2+ {[%clk 0:00:44]}  Kf6 {[%clk 0:00:31]} 48. Rb2 {[%clk 0:00:32]}  Kf5 {[%clk 0:00:26]} 49. d5 {[%clk 0:00:21]}  cxd5 {[%clk 0:00:16]} 50. c6 {[%clk 0:00:20]}  Ra8 {[%clk 0:00:12]} 51. c7 {[%clk 0:00:19]}  Ke6 {[%clk 0:00:09]} 52. Rc2 {[%clk 0:00:17]}  Kd6 {[%clk 0:00:08]} 53. Rf2 {[%clk 0:00:12]}  Nc8 {[%clk 0:00:08]} 54. Nd3 {[%clk 0:00:12]}  Nxb6 {[%clk 0:00:08]} 55. Rf6+ {[%clk 0:00:09]}  Kxc7 {[%clk 0:00:08]} 56. Rf7+ {[%clk 0:00:09]}  Kc6 {[%clk 0:00:08]} 57. Rg7 {[%clk 0:00:10]}  Ra3 {[%clk 0:00:08]} 58. Ne5+ {[%clk 0:00:07]}  Kd6 {[%clk 0:00:08]} 59. Rxg5 {[%clk 0:00:07]}  Nc4 {[%clk 0:00:08]} 60. Nf3 {[%clk 0:00:06]}  b5 {[%clk 0:00:07]} 61. Rg6+ {[%clk 0:00:06]}  Kc5 {[%clk 0:00:08]} 62. Nxh4 {[%clk 0:00:05]}  b4 {[%clk 0:00:08]} 63. Rg8 {[%clk 0:00:05]}  b3 {[%clk 0:00:09]} 64. Rb8 {[%clk 0:00:05]}  b2 {[%clk 0:00:09]} 65. Nf3 {[%clk 0:00:05]}  Ra1 {[%clk 0:00:09]} 66. Rc8+ {[%clk 0:00:03]}  Kd6 {[%clk 0:00:10]} 67. Rb8 {[%clk 0:00:02]}  b1=Q {[%clk 0:00:09]} 0-1


[Site "https://www.chess.com"]

[Event "Titled Tuesday Blitz April 25 Early 2023"]
[White "Sharapov, Evgeny"]
[Black "Wagner, Dennis"]
[WhiteFideId "14103133"]
[BlackFideId "24650684"]
[WhiteElo "2367"]
[BlackElo "2470"]
[Result "1/2-1/2"]
[Round "06"]
[TimeControl "180+2"]
[Date "2023.04.25"]
[WhiteClock "0:00:15"]
[BlackClock "0:00:06"]

1. e4 {[%clk 0:02:59]}  e5 {[%clk 0:03:00]} 2. Nf3 {[%clk 0:02:59]}  Nc6 {[%clk 0:03:00]} 3. Bb5 {[%clk 0:02:58]}  a6 {[%clk 0:03:01]} 4. Ba4 {[%clk 0:02:58]}  Nf6 {[%clk 0:03:01]} 5. d3 {[%clk 0:02:58]}  Bc5 {[%clk 0:03:01]} 6. c3 {[%clk 0:02:58]}  d6 {[%clk 0:02:58]} 7. h3 {[%clk 0:02:57]}  O-O {[%clk 0:02:58]} 8. O-O {[%clk 0:02:57]}  h6 {[%clk 0:02:56]} 9. Nbd2 {[%clk 0:02:56]}  Ba7 {[%clk 0:02:52]} 10. Re1 {[%clk 0:02:56]}  Ne7 {[%clk 0:02:46]} 11. Nf1 {[%clk 0:02:55]}  Ng6 {[%clk 0:02:46]} 12. Ng3 {[%clk 0:02:55]}  d5 {[%clk 0:02:35]} 13. exd5 {[%clk 0:02:53]}  Nxd5 {[%clk 0:02:36]} 14. Bb3 {[%clk 0:02:39]}  c6 {[%clk 0:02:33]} 15. d4 {[%clk 0:02:28]}  exd4 {[%clk 0:02:29]} 16. Nxd4 {[%clk 0:02:27]}  Bd7 {[%clk 0:02:22]} 17. Ndf5 {[%clk 0:02:20]}  Qf6 {[%clk 0:01:58]} 18. Qg4 {[%clk 0:01:54]}  Rae8 {[%clk 0:01:30]} 19. Bd2 {[%clk 0:01:47]}  Ne5 {[%clk 0:01:01]} 20. Qh5 {[%clk 0:01:26]}  Nd3 {[%clk 0:00:53]} 21. Rf1 {[%clk 0:01:07]}  Nxf2 {[%clk 0:00:38]} 22. Rxf2 {[%clk 0:01:05]}  Bxf2+ {[%clk 0:00:36]} 23. Kxf2 {[%clk 0:01:06]}  g6 {[%clk 0:00:24]} 24. Qg4 {[%clk 0:00:33]}  Bxf5 {[%clk 0:00:13]} 25. Nxf5 {[%clk 0:00:32]}  h5 {[%clk 0:00:11]} 26. Qg5 {[%clk 0:00:30]}  Qxf5+ {[%clk 0:00:06]} 27. Qxf5 {[%clk 0:00:30]}  gxf5 {[%clk 0:00:07]} 28. Bxd5 {[%clk 0:00:28]}  cxd5 {[%clk 0:00:08]} 29. Bh6 {[%clk 0:00:28]}  Re5 {[%clk 0:00:05]} 30. Bxf8 {[%clk 0:00:27]}  Kxf8 {[%clk 0:00:06]} 31. Rd1 {[%clk 0:00:27]}  Ke7 {[%clk 0:00:06]} 32. Rd4 {[%clk 0:00:26]}  Ke6 {[%clk 0:00:04]} 33. Rh4 {[%clk 0:00:26]}  f6 {[%clk 0:00:04]} 34. Rxh5 {[%clk 0:00:26]}  d4 {[%clk 0:00:04]} 35. cxd4 {[%clk 0:00:24]}  Ra5 {[%clk 0:00:05]} 36. a3 {[%clk 0:00:23]}  Rb5 {[%clk 0:00:05]} 37. b4 {[%clk 0:00:21]}  a5 {[%clk 0:00:06]} 38. bxa5 {[%clk 0:00:21]}  Rxa5 {[%clk 0:00:07]} 39. Rh7 {[%clk 0:00:19]}  Rxa3 {[%clk 0:00:05]} 40. Rxb7 {[%clk 0:00:18]}  Rd3 {[%clk 0:00:05]} 41. Rb6+ {[%clk 0:00:17]}  Kf7 {[%clk 0:00:05]} 42. Rb4 {[%clk 0:00:17]}  Rd2+ {[%clk 0:00:04]} 43. Kf3 {[%clk 0:00:16]}  Kg6 {[%clk 0:00:04]} 44. g4 {[%clk 0:00:15]}  fxg4+ {[%clk 0:00:04]} 45. hxg4 {[%clk 0:00:16]}  Kg5 {[%clk 0:00:04]} 46. Rb5+ {[%clk 0:00:15]}  Kg6 {[%clk 0:00:04]} 47. d5 {[%clk 0:00:16]}  Rd4 {[%clk 0:00:04]} 48. Ke3 {[%clk 0:00:15]}  Rxg4 {[%clk 0:00:03]} 49. d6 {[%clk 0:00:15]}  Kf7 {[%clk 0:00:04]} 50. Rd5 {[%clk 0:00:15]}  Ke8 {[%clk 0:00:04]} 51. d7+ {[%clk 0:00:15]}  Kd8 {[%clk 0:00:04]} 52. Rd6 {[%clk 0:00:15]}  Rg7 {[%clk 0:00:04]} 53. Rxf6 {[%clk 0:00:15]}  Kxd7 {[%clk 0:00:05]} 54. Rf4 {[%clk 0:00:14]}  Re7+ {[%clk 0:00:05]} 55. Re4 {[%clk 0:00:15]}  Rxe4+ {[%clk 0:00:06]} 56. Kxe4 {[%clk 0:00:15]} 1/2-1/2


[Site "https://www.chess.com"]